fUSD/lending_fUSD_20241011
["ID","MTS","AMOUNT","RATE_DAILY","PERIOD"]
[340136844,1728672642650,-500.0,0.00027397,2]
[340136845,1728672642659,-500.0,0.00027397,2]
[340136846,1728672642669,-500.0,0.00027397,2]
[340136847,1728672642678,-500.0,0.00027397,2]
[340136848,1728672642688,-500.0,0.00027397,2]
[340136849,1728672642698,-500.0,0.00027397,2]
[340136850,1728672642708,-500.0,0.00027397,2]
[340136851,1728672642717,-656.49,0.00027397,2]
[340136852,1728672642727,-532.85788645,0.00027397,2]
[340136853,1728672642736,-273.41539489,0.00027397,2]
[340136854,1728672642745,-500.0,0.00027397,2]
[340136855,1728672642755,-500.0,0.00027397,2]
[340136856,1728672642764,-546.82130592,0.00027397,2]
[340136857,1728672642774,-543.71,0.00027397,2]
[340136858,1728672642784,-996.13,0.00027397,2]
[340136859,1728672642793,-577.79,0.00027397,2]
[340136860,1728672642802,-518.80224326,0.00027397,2]
[340136861,1728672642812,-500.0,0.00027397,2]
[340136862,1728672642822,-500.0,0.00027397,2]
[340136863,1728672642831,-959.13,0.00027397,2]
[340136864,1728672642841,-500.0,0.00027397,2]
[340136865,1728672642850,-500.0,0.00027397,2]
[340136866,1728672642860,-500.0,0.00027397,2]
[340136867,1728672642870,-1872.19,0.00027397,2]
[340136868,1728672642879,-500.0,0.00027397,2]
[340136869,1728672642889,-500.0,0.00027397,2]
[340136870,1728672642899,-517.34,0.00027397,2]
[340136871,1728672642908,-1221.69,0.00027397,2]
[340136872,1728672642917,-500.0,0.00027397,2]
[340136873,1728672642926,-1011.5,0.0002745,2]
[340136874,1728672642935,-3000.0,0.000279,2]
[340136875,1728672642944,-1000.0,0.00028,2]
[340136876,1728672642954,-167.0,0.00028202,2]
[340136877,1728672642964,-519.57,0.00028219,2]
[340136878,1728672642973,-783.23,0.00028219,2]
[340136879,1728672642982,-500.0,0.00028219,2]
[340136880,1728672642991,-500.0,0.00028219,2]
[340136881,1728672643002,-500.0,0.00028219,2]
[340136882,1728672643011,-500.0,0.00028219,2]
[340136883,1728672643020,-500.0,0.00028219,2]
[340136884,1728672643030,-500.0,0.00028219,2]
[340136885,1728672643039,-500.0,0.00028219,2]
[340136886,1728672643049,-624.93,0.00028219,2]
[340136887,1728672643058,-500.0,0.00028219,2]
[340136888,1728672643067,-500.0,0.00028219,2]
[340136889,1728672643077,-500.0,0.00028219,2]
[340136890,1728672643086,-500.0,0.00028219,2]
[340136891,1728672643096,-500.0,0.00028219,2]
[340136892,1728672643105,-898.78,0.00028219,2]
[340136893,1728672643117,-586.53,0.00028219,2]
[340136894,1728672643128,-500.0,0.00028219,2]
[340136895,1728672643138,-500.0,0.00028219,2]
[340136896,1728672643147,-500.0,0.00028219,2]
[340136897,1728672643157,-500.0,0.00028219,2]
[340136898,1728672643166,-500.0,0.00028219,2]
[340136899,1728672643175,-500.0,0.00028219,2]
[340136900,1728672643185,-500.0,0.00028219,2]
[340136901,1728672643195,-888.9,0.00028219,2]
[340136902,1728672643204,-1201.2,0.00028219,2]
[340136903,1728672643214,-1806.24,0.00028219,2]
[340136904,1728672643223,-167.35,0.00028219,2]
[340136905,1728672643232,-500.0,0.00028219,2]
[340136906,1728672643242,-500.0,0.00028219,2]
[340136907,1728672643251,-675.26,0.00028219,2]
[340136908,1728672643260,-500.0,0.00028219,2]
[340136909,1728672643270,-1296.04,0.00028219,2]
[340136910,1728672643279,-696.91,0.00028219,2]
[340136911,1728672643288,-500.0,0.00028219,2]
[340136912,1728672643297,-1009.86,0.00028219,7]
[340136913,1728672643307,-500.0,0.00028219,2]
[340136914,1728672643319,-814.72,0.00028219,2]
[340136915,1728672643328,-500.0,0.00028219,2]
[340136916,1728672643337,-645.38,0.00028219,2]
[340136917,1728672643349,-500.0,0.00028219,2]
[340136918,1728672643360,-1169.35,0.00028219,2]
[340136919,1728672643369,-500.0,0.00028219,2]
[340136920,1728672643378,-552.22,0.00028219,2]
[340136921,1728672643388,-500.0,0.00028219,2]
[340136922,1728672643400,-500.0,0.00028219,2]
[340136923,1728672643409,-1368.18,0.00028219,2]
[340136924,1728672643419,-500.0,0.00028219,2]
[340136925,1728672643428,-717.45,0.00028219,2]
[340136926,1728672643438,-691.16,0.00028219,2]
[340136927,1728672643447,-318.32521346,0.00028219,2]
[340136928,1728672643458,-500.0,0.00028219,2]
[340136929,1728672643468,-500.0,0.00028219,2]
[340136930,1728672643477,-580.73,0.00028219,2]
[340136931,1728672643487,-500.0,0.00028219,2]
[340136932,1728672643496,-500.0,0.00028219,2]
[340136933,1728672643506,-307.64595515,0.00028219,2]
[340136934,1728672643515,-1898.53,0.00028219,2]
[340136935,1728672643525,-500.0,0.00028219,2]
[340136936,1728672643534,-500.0,0.00028219,2]
[340136937,1728672643544,-500.0,0.00028219,2]
[340136938,1728672643553,-500.0,0.00028219,2]
[340136939,1728672643562,-524.02,0.00028219,2]
[340136940,1728672643572,-500.0,0.00028219,2]
[340136941,1728672643581,-500.0,0.00028219,2]
[340136942,1728672643591,-391.48931296,0.00028219,2]
[340136943,1728672643600,-500.0,0.00028219,2]
[340136944,1728672643610,-766.81,0.00028219,2]
[340136945,1728672643619,-10818.2,0.00028219,2]
[340136946,1728672643629,-500.0,0.00028219,2]
[340136947,1728672643639,-500.0,0.00028219,2]
[340136948,1728672643648,-500.0,0.00028219,2]
[340136949,1728672643657,-500.0,0.00028219,2]
[340136950,1728672643667,-625.88560074,0.00028219,2]
[340136951,1728672643677,-500.0,0.00028219,2]
[340136952,1728672643687,-500.0,0.00028219,2]
[340136953,1728672643697,-500.0,0.00028219,2]
[340136954,1728672643707,-500.0,0.00028219,2]
[340136955,1728672643716,-500.0,0.00028219,2]
[340136956,1728672643726,-500.0,0.00028219,2]
[340136957,1728672643735,-2805.96,0.00028219,2]
[340136958,1728672643865,-2752.12,0.00028219,2]
[340136959,1728672643895,-500.0,0.00028219,2]
[340136960,1728672643904,-200.0,0.00028219,2]
[340136961,1728672643913,-500.0,0.00028219,2]
[340136962,1728672643923,-637.27,0.00028219,2]
[340136963,1728672643932,-500.0,0.00028219,2]
[340136964,1728672643942,-696.86,0.00028219,2]
[340136965,1728672643951,-500.0,0.00028219,2]
[340136966,1728672643962,-500.0,0.00028219,2]
[340136967,1728672643971,-646.45,0.00028219,2]
[340136968,1728672643981,-500.0,0.00028219,2]
[340136969,1728672643990,-500.0,0.00028219,2]
[340136970,1728672644001,-852.6,0.00028219,2]
[340136971,1728672644012,-500.0,0.00028219,2]
[340136972,1728672644022,-500.0,0.00028219,2]
[340136973,1728672644032,-293.63701376,0.00028219,2]
[340136974,1728672644044,-500.0,0.00028219,2]
[340136975,1728672644054,-500.0,0.00028219,2]
[340136976,1728672644064,-519.72,0.00028219,2]
[340136977,1728672644074,-500.0,0.00028219,2]
[340136978,1728672644084,-500.0,0.00028219,2]
[340136979,1728672644093,-500.0,0.00028219,2]
[340136980,1728672644103,-500.0,0.00028219,2]
[340136981,1728672644112,-496.19847811,0.00028219,2]
[340136982,1728672644122,-502.73,0.00028219,2]
[340136983,1728672644131,-987.93,0.00028219,2]
[340136984,1728672644142,-500.0,0.00028219,2]
[340136985,1728672644152,-500.0,0.00028219,2]
[340136986,1728672644161,-624.17,0.00028219,2]
[340136987,1728672644171,-2929.32,0.00028219,2]
[340136988,1728672644181,-303.38011775,0.00028219,2]
[340136989,1728672644192,-500.0,0.00028219,2]
[340136990,1728672644202,-500.0,0.00028219,2]
[340136991,1728672644211,-500.0,0.00028219,2]
[340136992,1728672644221,-500.0,0.00028219,2]
[340136993,1728672644230,-500.0,0.00028219,2]
[340136994,1728672644240,-500.0,0.00028219,2]
[340136995,1728672644252,-500.0,0.00028219,2]
[340136996,1728672644263,-500.0,0.00028219,2]
[340136997,1728672644273,-423.03813656,0.00028219,2]
[340136998,1728672644283,-656.49,0.00028219,2]
[340136999,1728672644293,-500.0,0.00028219,2]
[340137000,1728672644303,-500.0,0.00028219,2]
[340137002,1728672644313,-543.71,0.00028219,2]
[340137003,1728672644326,-996.13,0.00028219,2]
[340137004,1728672644337,-577.79,0.00028219,2]
[340137005,1728672644347,-500.0,0.00028219,2]
[340137006,1728672644357,-500.0,0.00028219,2]
[340137007,1728672644369,-959.13,0.00028219,2]
[340137008,1728672644378,-500.0,0.00028219,2]
[340137009,1728672644388,-500.0,0.00028219,2]
[340137010,1728672644399,-500.0,0.00028219,2]
[340137011,1728672644409,-1872.19,0.00028219,2]
[340137012,1728672644419,-500.0,0.00028219,2]
[340137013,1728672644428,-500.0,0.00028219,2]
[340137014,1728672644438,-517.34,0.00028219,2]
[340137015,1728672644447,-1221.69,0.00028219,2]
[340137016,1728672644457,-500.0,0.00028219,2]
[340137017,1728672644466,-1011.5,0.0002834,2]
[340137018,1728672644476,-511.4,0.00028446,2]
[340137019,1728672644485,-160.11,0.00028963,2]
[340137020,1728672644495,-150.0,0.00029002,7]
[340137021,1728672644504,-150.0,0.00029002,7]
[340137022,1728672644514,-150.0,0.00029002,7]
[340137023,1728672644524,-153.29119628,0.00029002,7]
[340137024,1728672644534,-225.88850033,0.00029002,7]
[340137025,1728672644544,-150.0,0.00029002,7]
[340137026,1728672644554,-150.0,0.00029002,7]
[340137027,1728672644563,-154.94569179,0.00029002,7]
[340137028,1728672644574,-519.57,0.00029041,2]
[340137029,1728672644583,-783.23,0.00029041,2]
[340137030,1728672644593,-500.0,0.00029041,2]
[340137031,1728672644603,-307.90768393,0.00029041,2]
[340137032,1728672644612,-500.0,0.00029041,2]
[340137033,1728672644622,-500.0,0.00029041,2]
[340137034,1728672644631,-500.0,0.00029041,2]
[340137035,1728672644640,-500.0,0.00029041,2]
[340137036,1728672644651,-500.0,0.00029041,2]
[340137037,1728672644660,-624.93,0.00029041,2]
[340137038,1728672644670,-500.0,0.00029041,2]
[340137039,1728672644679,-500.0,0.00029041,2]
[340137040,1728672644688,-500.0,0.00029041,2]
[340137041,1728672644697,-500.0,0.00029041,2]
[340137042,1728672644707,-500.0,0.00029041,2]
[340137043,1728672644716,-898.78,0.00029041,2]
[340137044,1728672644725,-586.53,0.00029041,2]
[340137045,1728672644734,-284.44302653,0.00029041,2]
[340137046,1728672644744,-500.0,0.00029041,2]
[340137047,1728672644753,-500.0,0.00029041,2]
[340137048,1728672644762,-500.0,0.00029041,2]
[340137049,1728672644772,-500.0,0.00029041,2]
[340137050,1728672644781,-500.0,0.00029041,2]
[340137051,1728672644790,-500.0,0.00029041,2]
[340137052,1728672644800,-888.9,0.00029041,2]
[340137053,1728672644811,-1201.2,0.00029041,2]
[340137054,1728672644821,-1806.24,0.00029041,2]
[340137055,1728672644832,-167.35,0.00029041,2]
[340137056,1728672644843,-500.0,0.00029041,2]
[340137057,1728672644854,-500.0,0.00029041,2]
[340137058,1728672644866,-675.26,0.00029041,2]
[340137059,1728672644875,-500.0,0.00029041,2]
[340137060,1728672644885,-1296.04,0.00029041,2]
[340137061,1728672644894,-696.91,0.00029041,2]
[340137062,1728672644904,-500.0,0.00029041,2]
[340137063,1728672644913,-1009.86,0.00029041,7]
[340137064,1728672644922,-500.0,0.00029041,2]
[340137065,1728672644932,-814.72,0.00029041,2]
[340137066,1728672644941,-500.0,0.00029041,2]
[340137067,1728672644951,-645.38,0.00029041,2]
[340137068,1728672644961,-500.0,0.00029041,2]
[340137069,1728672644970,-1169.35,0.00029041,2]
[340137070,1728672644979,-500.0,0.00029041,2]
[340137071,1728672644988,-552.22,0.00029041,2]
[340137072,1728672644997,-500.0,0.00029041,2]
[340137073,1728672645008,-500.0,0.00029041,2]
[340137074,1728672645018,-1368.18,0.00029041,2]
[340137075,1728672645030,-500.0,0.00029041,2]
[340137076,1728672645040,-717.45,0.00029041,2]
[340137077,1728672645050,-691.16,0.00029041,2]
[340137078,1728672645059,-500.0,0.00029041,2]
[340137079,1728672645069,-500.0,0.00029041,2]
[340137080,1728672645079,-580.73,0.00029041,2]
[340137081,1728672645088,-500.0,0.00029041,2]
[340137082,1728672645098,-500.0,0.00029041,2]
[340137083,1728672645108,-1898.53,0.00029041,2]
[340137084,1728672645117,-500.0,0.00029041,2]
[340137085,1728672645126,-500.0,0.00029041,2]
[340137086,1728672645136,-500.0,0.00029041,2]
[340137087,1728672645145,-500.0,0.00029041,2]
[340137088,1728672645155,-524.02,0.00029041,2]
[340137089,1728672645164,-500.0,0.00029041,2]
[340137090,1728672645174,-500.0,0.00029041,2]
[340137091,1728672645183,-500.0,0.00029041,2]
[340137092,1728672645192,-766.81,0.00029041,2]
[340137093,1728672645202,-10818.2,0.00029041,2]
[340137094,1728672645211,-500.0,0.00029041,2]
[340137095,1728672645221,-500.0,0.00029041,2]
[340137096,1728672645230,-500.0,0.00029041,2]
[340137097,1728672645239,-500.0,0.00029041,2]
[340137098,1728672645249,-500.0,0.00029041,2]
[340137099,1728672645259,-500.0,0.00029041,2]
[340137100,1728672645269,-500.0,0.00029041,2]
[340137101,1728672645278,-500.0,0.00029041,2]
[340137102,1728672645287,-500.0,0.00029041,2]
[340137103,1728672645296,-500.0,0.00029041,2]
[340137104,1728672645306,-2805.96,0.00029041,2]
[340137105,1728672645317,-500.0,0.00029041,2]
[340137106,1728672645327,-2752.12,0.00029041,2]
[340137109,1728672645336,-200.0,0.00029041,2]
[340137111,1728672645346,-500.0,0.00029041,2]
[340137113,1728672645355,-637.27,0.00029041,2]
[340137115,1728672645365,-500.0,0.00029041,2]
[340137117,1728672645374,-696.86,0.00029041,2]
[340137118,1728672645384,-500.0,0.00029041,2]
[340137119,1728672645395,-500.0,0.00029041,2]
[340137120,1728672645404,-646.45,0.00029041,2]
[340137121,1728672645414,-500.0,0.00029041,2]
[340137122,1728672645424,-500.0,0.00029041,2]
[340137123,1728672645434,-852.6,0.00029041,2]
[340137125,1728672645443,-500.0,0.00029041,2]
[340137126,1728672645453,-500.0,0.00029041,2]
[340137128,1728672645462,-500.0,0.00029041,2]
[340137130,1728672645471,-500.0,0.00029041,2]
[340137131,1728672645481,-519.72,0.00029041,2]
[340137132,1728672645490,-500.0,0.00029041,2]
[340137133,1728672645500,-500.0,0.00029041,2]
[340137134,1728672645509,-500.0,0.00029041,2]
[340137135,1728672645518,-500.0,0.00029041,2]
[340137136,1728672645527,-502.73,0.00029041,2]
[340137137,1728672645537,-987.93,0.00029041,2]
[340137138,1728672645546,-500.0,0.00029041,2]
[340137139,1728672645555,-500.0,0.00029041,2]
[340137140,1728672645565,-624.17,0.00029041,2]
[340137141,1728672645574,-2929.32,0.00029041,2]
[340137142,1728672645583,-500.0,0.00029041,2]
[340137143,1728672645592,-500.0,0.00029041,2]
[340137144,1728672645601,-500.0,0.00029041,2]
[340137145,1728672645611,-500.0,0.00029041,2]
[340137146,1728672645620,-500.0,0.00029041,2]
[340137147,1728672645630,-500.0,0.00029041,2]
[340137149,1728672645640,-500.0,0.00029041,2]
[340137151,1728672645651,-500.0,0.00029041,2]
[340137152,1728672645664,-656.49,0.00029041,2]
[340137153,1728672645675,-500.0,0.00029041,2]
[340137154,1728672645684,-500.0,0.00029041,2]
[340137155,1728672645694,-543.71,0.00029041,2]
[340137156,1728672645703,-996.13,0.00029041,2]
[340137157,1728672645712,-577.79,0.00029041,2]
[340137158,1728672645723,-500.0,0.00029041,2]
[340137159,1728672645733,-500.0,0.00029041,2]
[340137160,1728672645742,-959.13,0.00029041,2]
[340137161,1728672645752,-500.0,0.00029041,2]
[340137162,1728672645763,-500.0,0.00029041,2]
[340137163,1728672645772,-500.0,0.00029041,2]
[340137164,1728672645782,-1872.19,0.00029041,2]
[340137165,1728672645792,-500.0,0.00029041,2]
[340137166,1728672645801,-500.0,0.00029041,2]
[340137167,1728672645811,-517.34,0.00029041,2]
[340137168,1728672645820,-1221.69,0.00029041,2]
[340137169,1728672645830,-500.0,0.00029041,2]
[340137170,1728672645840,-167.0,0.00029049,2]
[340137171,1728672645849,-157.39169064,0.000291,2]
[340137172,1728672645859,-150.0,0.00029136,7]
[340137173,1728672645869,-150.0,0.00029203,7]
[340137174,1728672645879,-2110.0,0.00029224,2]
[340137175,1728672645888,-1011.5,0.0002923,2]
[340137176,1728672645898,-150.0,0.0002927,7]
[340137177,1728672645908,-150.0,0.0002927,7]
[340137178,1728672645917,-150.0,0.00029404,7]
[340137179,1728672645927,-150.0,0.00029404,7]
[340137180,1728672645936,-150.0,0.00029539,7]
[340137181,1728672645946,-150.0,0.00029539,7]
[340137182,1728672645955,-150.0,0.00029606,7]
[340137184,1728672645965,-150.0,0.00029673,7]
[340137186,1728672645975,-2110.0,0.00029724,2]
[340137187,1728672645984,-945.7253439,0.000298,2]
[340137188,1728672645993,-150.0,0.00029807,7]
[340137189,1728672646002,-150.0,0.00029807,7]
[340137190,1728672646011,-150.0,0.00029807,7]
[340137191,1728672646021,-406.29015251,0.0002985,2]
[340137192,1728672646030,-429.54547774,0.0002985,2]
[340137193,1728672646039,-519.57,0.00029863,2]
[340137194,1728672646049,-783.23,0.00029863,2]
[340137195,1728672646059,-500.0,0.00029863,2]
[340137196,1728672646068,-500.0,0.00029863,2]
[340137197,1728672646078,-500.0,0.00029863,2]
[340137198,1728672646087,-500.0,0.00029863,2]
[340137199,1728672646096,-500.0,0.00029863,2]
[340137200,1728672646105,-500.0,0.00029863,2]
[340137201,1728672646114,-624.93,0.00029863,2]
[340137202,1728672646123,-500.0,0.00029863,2]
[340137203,1728672646133,-500.0,0.00029863,2]
[340137204,1728672646142,-500.0,0.00029863,2]
[340137205,1728672646152,-500.0,0.00029863,2]
[340137206,1728672646161,-500.0,0.00029863,2]
[340137207,1728672646170,-898.78,0.00029863,2]
[340137208,1728672646182,-586.53,0.00029863,2]
[340137209,1728672646192,-500.0,0.00029863,2]
[340137210,1728672646201,-500.0,0.00029863,2]
[340137211,1728672646212,-308.32503313,0.00029863,2]
[340137212,1728672646223,-500.0,0.00029863,2]
[340137213,1728672646232,-500.0,0.00029863,2]
[340137214,1728672646275,-500.0,0.00029863,2]
[340137215,1728672646284,-888.9,0.00029863,2]
[340137216,1728672646294,-1201.2,0.00029863,2]
[340137217,1728672646305,-1806.24,0.00029863,2]
[340137218,1728672646319,-167.35,0.00029863,2]
[340137219,1728672646330,-500.0,0.00029863,2]
[340137220,1728672646339,-500.0,0.00029863,2]
[340137221,1728672646349,-675.26,0.00029863,2]
[340137222,1728672646361,-500.0,0.00029863,2]
[340137223,1728672646371,-1296.04,0.00029863,2]
[340137224,1728672646380,-696.91,0.00029863,2]
[340137225,1728672646390,-500.0,0.00029863,2]
[340137226,1728672646399,-1009.86,0.00029863,7]
[340137227,1728672646408,-500.0,0.00029863,2]
[340137228,1728672646418,-814.72,0.00029863,2]
[340137229,1728672646427,-500.0,0.00029863,2]
[340137230,1728672646436,-645.38,0.00029863,2]
[340137231,1728672646445,-500.0,0.00029863,2]
[340137232,1728672646454,-1169.35,0.00029863,2]
[340137233,1728672646463,-500.0,0.00029863,2]
[340137234,1728672646472,-552.22,0.00029863,2]
[340137235,1728672646482,-500.0,0.00029863,2]
[340137236,1728672646492,-500.0,0.00029863,2]
[340137237,1728672646501,-1368.18,0.00029863,2]
[340137238,1728672646510,-525.62799993,0.00029863,2]
[340137239,1728672646519,-717.45,0.00029863,2]
[340137240,1728672646529,-691.16,0.00029863,2]
[340137241,1728672646538,-500.0,0.00029863,2]
[340137242,1728672646547,-500.0,0.00029863,2]
[340137243,1728672646557,-580.73,0.00029863,2]
[340137244,1728672646566,-500.0,0.00029863,2]
[340137245,1728672646576,-500.0,0.00029863,2]
[340137246,1728672646585,-1898.53,0.00029863,2]
[340137247,1728672646594,-500.0,0.00029863,2]
[340137248,1728672646603,-500.0,0.00029863,2]
[340137249,1728672646612,-500.0,0.00029863,2]
[340137250,1728672646621,-500.0,0.00029863,2]
[340137251,1728672646631,-524.02,0.00029863,2]
[340137252,1728672646640,-500.0,0.00029863,2]
[340137253,1728672646648,-500.0,0.00029863,2]
[340137254,1728672646658,-500.0,0.00029863,2]
[340137255,1728672646667,-766.81,0.00029863,2]
[340137256,1728672646676,-10818.2,0.00029863,2]
[340137257,1728672646686,-500.0,0.00029863,2]
[340137258,1728672646695,-500.0,0.00029863,2]
[340137259,1728672646704,-500.0,0.00029863,2]
[340137260,1728672646713,-500.0,0.00029863,2]
[340137261,1728672646722,-594.34048823,0.00029863,2]
[340137262,1728672646731,-500.0,0.00029863,2]
[340137263,1728672646740,-500.0,0.00029863,2]
[340137264,1728672646749,-500.0,0.00029863,2]
[340137265,1728672646758,-385.69200315,0.00029863,2]
[340137266,1728672646767,-500.0,0.00029863,2]
[340137267,1728672646776,-2805.96,0.00029863,2]
[340137268,1728672646785,-500.0,0.00029863,2]
[340137269,1728672646795,-2752.12,0.00029863,2]
[340137270,1728672646804,-200.0,0.00029863,2]
[340137271,1728672646812,-500.0,0.00029863,2]
[340137272,1728672646822,-637.27,0.00029863,2]
[340137273,1728672646831,-500.0,0.00029863,2]
[340137274,1728672646840,-696.86,0.00029863,2]
[340137275,1728672646849,-260.53151674,0.00029863,2]
[340137276,1728672646858,-500.0,0.00029863,2]
[340137277,1728672646868,-646.45,0.00029863,2]
[340137278,1728672646877,-500.0,0.00029863,2]
[340137279,1728672646886,-500.0,0.00029863,2]
[340137280,1728672646895,-852.6,0.00029863,2]
[340137281,1728672646904,-500.0,0.00029863,2]
[340137282,1728672646913,-500.0,0.00029863,2]
[340137283,1728672646923,-500.0,0.00029863,2]
[340137284,1728672646932,-500.0,0.00029863,2]
[340137285,1728672646941,-519.72,0.00029863,2]
[340137286,1728672646950,-382.2535199,0.00029863,2]
[340137287,1728672646960,-500.0,0.00029863,2]
[340137288,1728672646969,-507.38933163,0.00029863,2]
[340137289,1728672646978,-500.0,0.00029863,2]
[340137290,1728672646987,-502.73,0.00029863,2]
[340137291,1728672646996,-987.93,0.00029863,2]
[340137292,1728672647005,-500.0,0.00029863,2]
[340137293,1728672647014,-500.0,0.00029863,2]
[340137294,1728672647023,-624.17,0.00029863,2]
[340137295,1728672647032,-2929.32,0.00029863,2]
[340137296,1728672647041,-500.0,0.00029863,2]
[340137297,1728672647050,-500.0,0.00029863,2]
[340137298,1728672647059,-524.28743038,0.00029863,2]
[340137299,1728672647068,-500.0,0.00029863,2]
[340137300,1728672647077,-500.0,0.00029863,2]
[340137301,1728672647086,-500.0,0.00029863,2]
[340137302,1728672647095,-500.0,0.00029863,2]
[340137303,1728672647104,-500.0,0.00029863,2]
[340137304,1728672647113,-656.49,0.00029863,2]
[340137305,1728672647122,-500.0,0.00029863,2]
[340137306,1728672647132,-500.0,0.00029863,2]
[340137307,1728672647141,-543.71,0.00029863,2]
[340137308,1728672647150,-996.13,0.00029863,2]
[340137309,1728672647160,-577.79,0.00029863,2]
[340137310,1728672647169,-500.0,0.00029863,2]
[340137311,1728672647178,-500.0,0.00029863,2]
[340137312,1728672647187,-959.13,0.00029863,2]
[340137313,1728672647197,-500.0,0.00029863,2]
[340137314,1728672647206,-500.0,0.00029863,2]
[340137315,1728672647215,-500.0,0.00029863,2]
[340137316,1728672647224,-1872.19,0.00029863,2]
[340137317,1728672647234,-500.0,0.00029863,2]
[340137318,1728672647243,-570.20490564,0.00029863,2]
[340137319,1728672647253,-1221.69,0.00029863,2]
[340137320,1728672647262,-517.34,0.00029863,2]
[340137321,1728672647271,-500.0,0.00029863,2]
[340137322,1728672647279,-167.0,0.00029896,2]
[340137323,1728672647288,-150.0,0.00029941,7]
[340137324,1728672647297,-1238.17379572,0.0003,2]
[340137325,1728672647306,-1050.0,0.0003,2]
[340137326,1728672647318,-178.0,0.0003,2]
[340137327,1728672647327,-892.64933319,0.0003,2]
[340137328,1728672647336,-150.0,0.00030009,7]
[340137329,1728672647345,-150.0,0.00030076,7]
[340137330,1728672647354,-150.0,0.00030076,7]
[340137331,1728672647363,-150.0,0.00030076,7]
[340137332,1728672647372,-1011.5,0.0003012,2]
[340137333,1728672647381,-1125.0,0.00030136,2]
[340137334,1728672647391,-755.56,0.00030136,2]
[340137335,1728672647400,-423.99,0.00030136,2]
[340137336,1728672647408,-423.99,0.00030136,2]
[340137337,1728672647417,-423.99,0.00030136,2]
[340137338,1728672647426,-423.99,0.00030136,2]
[340137339,1728672647435,-150.0,0.0003021,7]
[340137340,1728672647444,-150.0,0.0003021,7]
[340137341,1728672647453,-2110.0,0.00030224,2]
[340137342,1728672647462,-365.53815337,0.00030329,2]
[340137343,1728672647471,-150.0,0.00030344,7]
[340137344,1728672647480,-150.0,0.00030344,7]
[340137345,1728672647489,-1813.01759393,0.00030365,10]
[340137346,1728672647499,-150.0,0.00030411,7]
[340137347,1728672647509,-150.0,0.00030479,7]
[340137348,1728672647519,-1042.0,0.000306,2]
[340137349,1728672647530,-150.0,0.00030613,7]
[340137350,1728672647540,-150.0,0.00030613,7]
[340137351,1728672647549,-150.0,0.00030613,7]
[340137352,1728672647559,-519.57,0.00030684,2]
[340137353,1728672647568,-783.23,0.00030684,2]
[340137354,1728672647577,-640.7004586,0.00030684,2]
[340137355,1728672647587,-500.0,0.00030684,2]
[340137356,1728672647596,-500.0,0.00030684,2]
[340137357,1728672647606,-500.0,0.00030684,2]